fUSD/lending_fUSD_20240118
["ID","MTS","AMOUNT","RATE_DAILY","PERIOD"]
[312065205,1705594244099,-500.0,0.0002518,2]
[312065206,1705594244108,-1876.91,0.00025189,2]
[312065207,1705594244118,-150.0,0.00025204,2]
[312065208,1705594244127,-201.37991691,0.000253,2]
[312065209,1705594244137,-290.74,0.000253,2]
[312065210,1705594244147,-500.0,0.00025349,2]
[312065211,1705594244156,-1000.0,0.00025369,2]
[312065212,1705594244166,-322.84503178,0.00025369,2]
[312065213,1705594244175,-150.0,0.0002538,2]
[312065214,1705594244185,-150.0,0.00025389,2]
[312065215,1705594244195,-150.0,0.0002546,2]
[312065216,1705594244204,-300.0,0.00025467,2]
[312065217,1705594244215,-179.85729111,0.000255,2]
[312065218,1705594244224,-250.3253178,0.00025506,2]
[312065219,1705594244234,-150.0,0.00025511,2]
[312065220,1705594244243,-500.0,0.00025518,2]
[312065221,1705594244251,-150.0,0.00025523,2]
[312065222,1705594244261,-150.0,0.00025558,2]
[312065223,1705594244271,-150.0,0.00025566,2]
[312065224,1705594244281,-150.0,0.00025606,2]
[312065225,1705594244290,-239.22,0.00025614,2]
[312065226,1705594244299,-190.67946795,0.00025618,2]
[312065227,1705594244309,-985.23,0.00025636,2]
[312065228,1705594244318,-300.0,0.00025647,2]
[312065229,1705594244327,-300.0,0.00025649,2]
[312065230,1705594244338,-150.0,0.00025653,2]
[312065231,1705594244347,-165.89,0.00025676,2]
[312065232,1705594244357,-500.0,0.00025687,2]
[312065233,1705594244367,-150.0,0.00025727,2]
[312065234,1705594244376,-300.0,0.00025797,2]
[312065235,1705594244386,-433.0,0.000258,2]
[312065236,1705594244396,-343.0,0.000258,2]
[312065237,1705594244405,-4922.72186408,0.0002584,2]
[312065238,1705594244414,-150.0,0.00025853,2]
[312065239,1705594244424,-500.0,0.00025856,2]
[312065240,1705594244433,-167.0,0.00025901,2]
[312065241,1705594244443,-200.0,0.00025915,2]
[312065242,1705594244452,-150.0,0.00025917,2]
[312065243,1705594244464,-1000.0,0.00025951,2]
[312065244,1705594244473,-150.0,0.00025958,2]
[312065245,1705594244482,-158.66,0.00025977,2]
[312065246,1705594244490,-5737.78995102,0.00025984,2]
[312065247,1705594244499,-1876.91,0.00025995,2]
[312065248,1705594244509,-5000.0,0.00026,2]
[312065249,1705594244519,-406.13697717,0.00026,2]
[312065250,1705594244529,-18290.59818326,0.00026,2]
[312065251,1705594244538,-650.0,0.00026,3]
[312065252,1705594244547,-650.0,0.00026,2]
[312065253,1705594244557,-20000.0,0.00026,2]
[312065254,1705594244567,-150.0,0.00026003,2]
[312065255,1705594244577,-300.0,0.00026022,2]
[312065256,1705594244586,-150.0,0.00026068,2]
[312065257,1705594244595,-150.0,0.00026068,2]
[312065258,1705594244604,-1000.0,0.0002607,2]
[312065259,1705594244613,-500.0,0.0002607,2]
[312065260,1705594244622,-150.0,0.00026071,2]
[312065261,1705594244632,-1000.0,0.000261,2]
[312065262,1705594244641,-193.30891275,0.00026102,3]
[312065263,1705594244651,-1341.62481094,0.00026102,3]
[312065264,1705594244660,-4190.57207897,0.00026102,3]
[312065265,1705594244669,-3782.12080346,0.00026102,3]
[312065266,1705594244679,-1000.0,0.00026102,3]
[312065267,1705594244689,-1160.42852639,0.00026102,3]
[312065268,1705594244698,-580.21426319,0.00026102,3]
[312065269,1705594244707,-2909.42676382,0.00026102,3]
[312065270,1705594244720,-1000.0,0.00026102,3]
[312065271,1705594244730,-1939.70295993,0.00026102,3]
[312065272,1705594244739,-466.12402948,0.00026102,3]
[312065273,1705594244749,-332.51966419,0.00026102,3]
[312065274,1705594244759,-1000.0,0.00026102,3]
[312065275,1705594244768,-4242.39690383,0.00026102,3]
[312065276,1705594244778,-4058.36265545,0.00026102,3]
[312065277,1705594244787,-150.0,0.00026103,2]
[312065278,1705594244798,-293.0,0.00026137,2]
[312065279,1705594244809,-150.0,0.00026153,2]
[312065280,1705594244819,-150.0,0.00026163,2]
[312065281,1705594244828,-150.0,0.0002617,2]
[312065282,1705594244838,-150.0,0.0002618,2]
[312065283,1705594245073,-2302.079661,0.000262,2]
[312065284,1705594245084,-150.0,0.00026223,2]
[312065285,1705594245094,-150.82535441,0.00026233,2]
[312065286,1705594245104,-150.0,0.00026253,2]
[312065287,1705594245113,-150.0,0.00026289,2]
[312065288,1705594245123,-500.0,0.00026293,2]
[312065289,1705594245133,-150.0,0.00026299,2]
[312065290,1705594245142,-150.0,0.00026301,2]
[312065291,1705594245152,-150.0,0.00026304,2]
[312065292,1705594245162,-150.0,0.00026309,2]
[312065293,1705594245171,-150.0,0.00026323,2]
[312065294,1705594245181,-150.0,0.00026346,2]
[312065295,1705594245191,-150.0,0.00026355,2]
[312065296,1705594245201,-300.0,0.00026369,2]
[312065297,1705594245211,-4322.1058194,0.00026383,2]
[312065298,1705594245221,-150.0,0.00026386,2]
[312065299,1705594245233,-150.0,0.00026386,2]
[312065300,1705594245242,-200000.0,0.00026387,2]
[312065301,1705594245252,-151.0,0.00026387,7]
[312065302,1705594245262,-151.0,0.00026387,7]
[312065303,1705594245271,-151.0,0.00026387,7]
[312065304,1705594245281,-150.0,0.00026437,2]
[312065305,1705594245290,-150.0,0.00026437,2]
[312065306,1705594245300,-206.85227,0.00026437,2]
[312065307,1705594245309,-22355.93032834,0.00026437,2]
[312065308,1705594245318,-315.02889246,0.00026437,29]
[312065309,1705594245327,-150.0,0.00026439,2]
[312065310,1705594245336,-150.0,0.00026453,2]
[312065311,1705594245345,-200.0,0.0002648,2]
[312065312,1705594245354,-200.0,0.0002648,2]
[312065313,1705594245363,-307.38431214,0.00026484,2]
[312065314,1705594245372,-150.0,0.00026485,2]
[312065315,1705594245381,-800.0,0.0002649,2]
[312065316,1705594245391,-149340.98114687,0.000265,2]
[312065317,1705594245407,-115149.94693358,0.000265,2]
[312065318,1705594245419,-50163.50565021,0.000265,2]
[312065319,1705594245431,-30264.83880303,0.000265,2]
[312065320,1705594245443,-998.80882928,0.000265,2]
[312065321,1705594245455,-540.1437836,0.000265,2]
[312065322,1705594245467,-452.44004871,0.000265,2]
[312065323,1705594245479,-565.34466925,0.000265,2]
[312065324,1705594245498,-5100.81464862,0.000265,2]
[312065325,1705594245510,-114113.23005129,0.000265,2]
[312065327,1705594246080,-163.18377664,0.00021605,2]
[312065328,1705594246090,-223.01511582,0.00022884,2]
[312065330,1705594246112,-449.19,0.00022884,2]
[312065332,1705594246125,-637.54131463,0.00022884,2]
[312065334,1705594246135,-150.0,0.00024039,2]
[312065336,1705594246145,-18.58896304,0.00024114,2]
[312065340,1705594246165,-131.41103696,0.00024114,2]
[312065344,1705594246174,-150.0,0.00024176,2]
[312065347,1705594246184,-150.0,0.00024189,2]
[312065350,1705594246193,-150.0,0.00024192,2]
[312065354,1705594246203,-150.0,0.00024356,2]
[312065356,1705594246212,-150.0,0.00024359,2]
[312065357,1705594246226,-150.0,0.00024368,2]
[312065359,1705594246235,-137.85839776,0.00024504,2]
[312065360,1705594246248,-12.14160224,0.00024504,2]
[312065361,1705594246257,-150.0,0.00024608,2]
[312065362,1705594246267,-150.0,0.00024627,2]
[312065363,1705594246276,-150.0,0.00024704,2]
[312065364,1705594246285,-150.0,0.00024788,2]
[312065365,1705594246295,-150.0,0.00024891,2]
[312065366,1705594246304,-150.0,0.00024898,2]
[312065367,1705594246314,-150.0,0.00024915,2]
[312065368,1705594246323,-150.0,0.00024956,2]
[312065369,1705594246333,-150.0,0.00024961,2]
[312065370,1705594246345,-10918.73052444,0.000265,2]
[312065371,1705594246357,-8808.51945345,0.000265,2]
[312065372,1705594246374,-562.44851433,0.000265,2]
[312065373,1705594246385,-273.9674551,0.000265,2]
[312065374,1705594246397,-1088.03963087,0.000265,2]
[312065375,1705594246409,-981.33783082,0.000265,2]
[312065376,1705594246429,-353.15536203,0.000265,2]
[312065377,1705594246440,-16811.31232142,0.000265,2]
[312065378,1705594246452,-3218.59497146,0.000265,2]
[312065379,1705594246464,-2460.34985828,0.000265,2]
[312065380,1705594246492,-4067.28728259,0.000265,2]
[312065381,1705594246504,-10161.59811394,0.000265,2]
[312065382,1705594246516,-262.79677064,0.000265,2]
[312065383,1705594246527,-1004.8345384,0.000265,2]
[312065384,1705594246547,-357.58454009,0.000265,2]
[312065385,1705594246559,-4722.26924474,0.000265,2]
[312065406,1705594247041,-195.01035845,0.00022896,6]
[312065408,1705594247051,-202067.14864796,0.000265,2]
[312065410,1705594247064,-1000.0,0.000265,2]
[312065412,1705594247076,-1879.0,0.000265,2]
[312065414,1705594247085,-150.0,0.00026569,2]
[312065416,1705594247095,-4391.71,0.00026575,2]
[312065418,1705594247104,-12114.33,0.00026575,2]
[312065420,1705594247114,-1000.0,0.000266,2]
[312065422,1705594247124,-985.23,0.00026614,2]
[312065424,1705594247133,-150.0,0.00026629,2]
[312065426,1705594247143,-150.0,0.00026643,2]
[312065428,1705594247152,-150.0,0.00026644,2]
[312065430,1705594247162,-152.84068148,0.00026659,2]
[312065431,1705594247171,-150.0,0.00026662,2]
[312065432,1705594247181,-150.0,0.00026669,2]
[312065433,1705594247190,-1000.0,0.0002667,2]
[312065434,1705594247200,-1000.0,0.0002667,2]
[312065435,1705594247209,-500.0,0.0002667,2]
[312065436,1705594247281,-500.0,0.0002667,2]
[312065437,1705594247291,-4651.86755386,0.0002668,2]
[312065438,1705594247300,-50000.0,0.00026683,2]
[312065439,1705594247310,-9372.87126583,0.00026683,2]
[312065440,1705594247320,-7057.54174121,0.00026683,2]
[312065441,1705594247329,-38911.74170068,0.00026683,2]
[312065442,1705594247339,-3852.12768127,0.00026683,2]
[312065443,1705594247348,-50000.0,0.00026683,2]
[312065444,1705594247358,-180.82748577,0.00026683,2]
[312065445,1705594247367,-182.17022625,0.00026687,2]
[312065446,1705594247377,-150.0,0.00026699,2]
[312065447,1705594247387,-1000.0,0.000267,2]
[312065448,1705594247396,-167.296313,0.000267,2]
[312065449,1705594247406,-860.383799,0.000267,2]
[312065450,1705594247415,-150.0,0.000267,2]
[312065451,1705594247425,-1500.0,0.000267,2]
[312065452,1705594247434,-167.0,0.00026703,2]
[312065453,1705594247443,-3296.21810704,0.00026703,2]
[312065454,1705594247452,-623.51852664,0.00026704,2]
[312065455,1705594247461,-500.0,0.00026731,2]
[312065456,1705594247471,-6660.13963479,0.00026789,2]
[312065457,1705594247482,-205.0,0.00026794,9]
[312065458,1705594247491,-1000.0,0.000268,7]
[312065459,1705594247501,-1876.91,0.000268,2]
[312065460,1705594247510,-4922.72186408,0.0002682,2]
[312065461,1705594247519,-941.24,0.00026915,2]
[312065462,1705594247528,-941.24,0.00026915,2]
[312065463,1705594247538,-401.69,0.00026915,2]
[312065464,1705594247547,-889.76,0.00026915,2]
[312065465,1705594247557,-271.78,0.00026915,2]
[312065466,1705594247566,-401.69,0.00026915,2]
[312065467,1705594247576,-401.69,0.00026915,2]
[312065468,1705594247585,-401.69,0.00026915,2]
[312065469,1705594247594,-401.69,0.00026915,2]
[312065470,1705594247603,-401.69,0.00026915,2]
[312065471,1705594247613,-2000.0,0.00027,2]
[312065472,1705594247623,-369.4297,0.00027,2]
[312065473,1705594247633,-155.0,0.00027,2]
[312065474,1705594247642,-4000.0,0.00027,2]
[312065475,1705594247652,-2083.66523063,0.00027068,2]
[312065476,1705594247661,-40079.57247231,0.00027144,2]
[312065477,1705594247671,-152.40077057,0.00027146,2]
[312065478,1705594247680,-500.0,0.00027168,2]
[312065479,1705594247690,-45981.42633026,0.000272,2]
[312065480,1705594247699,-150.0,0.000272,2]
[312065481,1705594247709,-200.0,0.00027395,2]
[312065482,1705594247719,-3609.75657722,0.00027397,2]
[312065483,1705594247727,-150.0,0.00027397,2]
[312065484,1705594247736,-3000.0,0.00027397,2]
[312065485,1705594247745,-3000.0,0.00027397,2]
[312065486,1705594247754,-3000.0,0.00027397,2]
[312065487,1705594247762,-3000.0,0.00027397,2]
[312065488,1705594247771,-3000.0,0.00027397,2]
[312065489,1705594247780,-3000.0,0.00027397,2]
[312065490,1705594247790,-3000.0,0.00027397,2]
[312065491,1705594247803,-3000.0,0.00027397,2]
[312065492,1705594247813,-3000.0,0.00027397,2]
[312065493,1705594247822,-3000.0,0.00027397,2]
[312065494,1705594247831,-3000.0,0.00027397,2]
[312065495,1705594247840,-3000.0,0.00027397,2]
[312065496,1705594247849,-3000.0,0.00027397,2]
[312065497,1705594247858,-3000.0,0.00027397,2]
[312065498,1705594247867,-3000.0,0.00027397,2]
[312065499,1705594247877,-3000.0,0.00027397,2]
[312065500,1705594247886,-3000.0,0.00027397,2]
[312065501,1705594247895,-3000.0,0.00027397,2]
[312065502,1705594247905,-3000.0,0.00027397,2]
[312065503,1705594247913,-3000.0,0.00027397,2]
[312065504,1705594247923,-155.0,0.00027397,2]
[312065505,1705594247932,-528.6861903,0.00027397,7]
[312065506,1705594247941,-500.0,0.00027397,7]
[312065507,1705594247949,-972.06,0.00027397,2]
[312065508,1705594247958,-28763.33,0.00027397,2]
[312065509,1705594247968,-150.0,0.00027397,2]
[312065510,1705594247977,-33618.81,0.00027397,2]
[312065511,1705594247985,-10889.49,0.00027397,2]
[312065512,1705594247994,-4399.09,0.00027397,10]
[312065513,1705594248003,-3665.91,0.00027397,10]
[312065514,1705594248012,-8000.0,0.000274,2]
[312065515,1705594248020,-1697.49,0.000274,2]
[312065516,1705594248030,-1697.49,0.000274,2]
[312065517,1705594248040,-1697.49,0.000274,2]
[312065518,1705594248050,-1697.49,0.000274,2]
[312065519,1705594248059,-1697.49,0.000274,2]
[312065520,1705594248069,-1697.49,0.000274,2]
[312065521,1705594248078,-1697.49,0.000274,2]
[312065522,1705594248088,-1697.49,0.000274,2]
[312065523,1705594248097,-1697.49,0.000274,2]
[312065524,1705594248107,-1697.49,0.000274,2]
[312065525,1705594248117,-836.0,0.00027489,2]
[312065526,1705594248126,-1854.0,0.00027489,2]
[312065527,1705594248136,-167.0,0.00027505,2]
[312065528,1705594248144,-10889.49,0.00027556,2]
[312065529,1705594248154,-985.23,0.00027593,2]
[312065530,1705594248162,-500.0,0.00027605,2]
[312065531,1705594248172,-1876.91,0.00027606,2]
[312065532,1705594248181,-946.0,0.00027629,2]
[312065533,1705594248190,-1234.0,0.00027629,2]
[312065534,1705594248199,-1249.0,0.00027629,2]
[312065535,1705594248209,-319.0,0.00027629,2]
[312065536,1705594248219,-876.0,0.00027629,2]
[312065537,1705594248229,-1138.0,0.00027629,2]
[312065538,1705594248239,-5800.0,0.00027654,2]
[312065539,1705594248249,-5800.0,0.00027663,2]
[312065540,1705594248258,-5800.0,0.00027671,2]
[312065541,1705594248268,-150.0,0.00027687,2]
[312065542,1705594248278,-2905.0,0.00027689,2]
[312065543,1705594248288,-19705.0,0.00027689,2]
[312065544,1705594248297,-2273.0,0.00027689,2]
[312065545,1705594248307,-1029.0,0.00027689,2]
[312065546,1705594248316,-500.0,0.00027697,2]
[312065547,1705594248326,-150.0,0.000277,2]
[312065548,1705594248335,-10889.49,0.00027714,2]
[312065549,1705594248345,-4922.72186408,0.000278,2]
[312065550,1705594248354,-150.0,0.00027829,2]
[312065551,1705594248364,-150.0,0.00027829,2]
[312065552,1705594248373,-150.0,0.00027829,2]
[312065553,1705594248383,-10889.49,0.00027872,2]
[312065554,1705594248393,-239.22,0.00027878,2]
[312065555,1705594248403,-150.0,0.0002788,2]
[312065556,1705594248413,-150.0,0.0002788,2]
[312065557,1705594248422,-150.0,0.00027945,2]
[312065558,1705594248433,-203.0550109,0.00028,2]
[312065559,1705594248442,-688.79473801,0.00028,2]
[312065560,1705594248453,-2000.0,0.00028,2]
[312065561,1705594248465,-700.0,0.00028,3]
[312065562,1705594248475,-200.0,0.00028,2]
[312065563,1705594248484,-407.79009324,0.00028,2]
[312065564,1705594248495,-407.79009324,0.00028,2]
[312065565,1705594248505,-407.79009324,0.00028,2]
[312065566,1705594248516,-450.0,0.0002803,2]
[312065567,1705594248526,-500.0,0.0002803,2]
[312065568,1705594248536,-500.0,0.0002803,2]
[312065569,1705594248546,-500.0,0.0002803,2]
[312065570,1705594248557,-500.0,0.0002803,2]
[312065571,1705594248568,-500.0,0.0002803,2]
[312065572,1705594248578,-500.0,0.0002803,2]
[312065573,1705594248588,-500.0,0.0002803,2]
[312065574,1705594248598,-500.0,0.0002803,2]
[312065575,1705594248608,-500.0,0.0002803,2]
[312065576,1705594248618,-500.0,0.0002803,2]
[312065577,1705594248629,-500.0,0.0002803,2]
[312065578,1705594248640,-500.0,0.0002803,2]
[312065579,1705594248651,-500.0,0.0002803,2]
[312065580,1705594248661,-500.0,0.0002803,2]
[312065581,1705594248671,-500.0,0.0002803,2]
[312065582,1705594248682,-500.0,0.0002803,2]
[312065583,1705594248692,-500.0,0.0002803,2]
[312065584,1705594248703,-500.0,0.0002803,2]
[312065585,1705594248713,-500.0,0.0002803,2]
[312065586,1705594248725,-500.0,0.0002803,2]
[312065587,1705594248736,-500.0,0.0002803,2]
[312065588,1705594248747,-500.0,0.0002803,2]
[312065589,1705594248758,-500.0,0.0002803,2]
[312065590,1705594248769,-500.0,0.0002803,2]
[312065591,1705594248779,-500.0,0.0002803,2]
[312065592,1705594248789,-500.0,0.0002803,2]
[312065593,1705594248805,-500.0,0.0002803,2]
[312065594,1705594248816,-500.0,0.0002803,2]
[312065595,1705594248826,-500.0,0.0002803,2]
[312065596,1705594248837,-500.0,0.0002803,2]
[312065597,1705594248848,-500.0,0.0002803,2]
[312065598,1705594248859,-500.0,0.0002803,2]
[312065599,1705594248870,-500.0,0.0002803,2]
[312065600,1705594248880,-500.0,0.0002803,2]
[312065601,1705594248889,-500.0,0.0002803,2]
[312065602,1705594248899,-500.0,0.0002803,2]
[312065603,1705594248908,-500.0,0.0002803,2]
[312065604,1705594248918,-500.0,0.0002803,2]
[312065605,1705594248928,-500.0,0.0002803,2]
[312065606,1705594248937,-500.0,0.0002803,2]
[312065607,1705594248947,-500.0,0.0002803,2]
[312065608,1705594248956,-350.0,0.0002803,2]
[312065609,1705594248967,-500.0,0.0002803,2]
[312065610,1705594248976,-500.0,0.0002803,2]
[312065611,1705594248985,-500.0,0.0002803,2]
[312065612,1705594248995,-500.0,0.0002803,2]
[312065613,1705594249005,-500.0,0.0002803,2]
[312065614,1705594249014,-500.0,0.0002803,2]
[312065615,1705594249025,-500.0,0.0002803,2]
[312065616,1705594249035,-500.0,0.0002803,2]
[312065617,1705594249044,-500.0,0.0002803,2]
[312065618,1705594249053,-500.0,0.0002803,2]
[312065619,1705594249063,-500.0,0.0002803,2]
[312065620,1705594249074,-500.0,0.0002803,2]
[312065621,1705594249083,-500.0,0.0002803,2]
[312065622,1705594249093,-500.0,0.0002803,2]
[312065623,1705594249103,-500.0,0.0002803,2]
[312065624,1705594249113,-500.0,0.0002803,2]
[312065625,1705594249123,-500.0,0.0002803,2]
[312065626,1705594249132,-500.0,0.0002803,2]
[312065627,1705594249142,-500.0,0.0002803,2]
[312065628,1705594249152,-500.0,0.0002803,2]
[312065629,1705594249161,-500.0,0.0002803,2]
[312065630,1705594249171,-500.0,0.0002803,2]
[312065631,1705594249181,-500.0,0.0002803,2]
[312065632,1705594249191,-500.0,0.0002803,2]
[312065633,1705594249201,-500.0,0.0002803,2]
[312065634,1705594249212,-500.0,0.0002803,2]
[312065635,1705594249222,-250.0,0.0002803,2]
[312065636,1705594249231,-500.0,0.0002803,2]
[312065637,1705594249241,-500.0,0.0002803,2]
[312065638,1705594249251,-500.0,0.0002803,2]
[312065639,1705594249261,-500.0,0.0002803,2]
[312065640,1705594249271,-500.0,0.0002803,2]
[312065641,1705594249281,-500.0,0.0002803,2]
[312065642,1705594249291,-500.0,0.0002803,2]
[312065643,1705594249301,-500.0,0.0002803,2]
[312065644,1705594249311,-500.0,0.0002803,2]
[312065645,1705594249321,-500.0,0.0002803,2]
[312065646,1705594249331,-500.0,0.0002803,2]
[312065647,1705594249341,-500.0,0.0002803,2]
[312065648,1705594249352,-500.0,0.0002803,2]
[312065649,1705594249362,-500.0,0.0002803,2]
[312065650,1705594249372,-500.0,0.0002803,2]
[312065651,1705594249382,-500.0,0.0002803,2]
[312065652,1705594249393,-500.0,0.0002803,2]
[312065653,1705594249402,-500.0,0.0002803,2]
[312065654,1705594249411,-500.0,0.0002803,2]
[312065655,1705594249420,-500.0,0.0002803,2]
[312065656,1705594249429,-500.0,0.0002803,2]
[312065657,1705594249439,-500.0,0.0002803,2]
[312065658,1705594249448,-500.0,0.0002803,2]
[312065659,1705594249457,-500.0,0.0002803,2]
[312065660,1705594249467,-500.0,0.0002803,2]
[312065661,1705594249476,-500.0,0.0002803,2]
[312065662,1705594249485,-500.0,0.0002803,2]
[312065663,1705594249494,-500.0,0.0002803,2]
[312065664,1705594249503,-500.0,0.0002803,2]
[312065665,1705594249513,-500.0,0.0002803,2]
[312065666,1705594249523,-500.0,0.0002803,2]
[312065667,1705594249532,-500.0,0.0002803,2]
[312065668,1705594249542,-500.0,0.0002803,2]
[312065669,1705594249551,-500.0,0.0002803,2]
[312065670,1705594249560,-500.0,0.0002803,2]
[312065671,1705594249569,-500.0,0.0002803,2]
[312065672,1705594249578,-500.0,0.0002803,2]
[312065673,1705594249588,-500.0,0.0002803,2]
[312065674,1705594249597,-500.0,0.0002803,2]
[312065675,1705594249606,-500.0,0.0002803,2]
[312065676,1705594249615,-500.0,0.0002803,2]
[312065677,1705594249624,-500.0,0.0002803,2]
[312065678,1705594249634,-500.0,0.0002803,2]
[312065679,1705594249643,-500.0,0.0002803,2]
[312065680,1705594249652,-500.0,0.0002803,2]
[312065681,1705594249661,-500.0,0.0002803,2]
[312065682,1705594249670,-500.0,0.0002803,2]
[312065683,1705594249680,-500.0,0.0002803,2]
[312065684,1705594249689,-500.0,0.0002803,2]
[312065685,1705594249698,-500.0,0.0002803,2]
[312065686,1705594249708,-500.0,0.0002803,2]
[312065687,1705594249718,-500.0,0.0002803,2]
[312065688,1705594249728,-500.0,0.0002803,2]
[312065689,1705594249737,-500.0,0.0002803,2]
[312065690,1705594249746,-500.0,0.0002803,2]
[312065691,1705594249756,-500.0,0.0002803,2]
[312065692,1705594249765,-500.0,0.0002803,2]
[312065693,1705594249774,-500.0,0.0002803,2]
[312065694,1705594249783,-500.0,0.0002803,2]
[312065695,1705594249793,-500.0,0.0002803,2]
[312065696,1705594249805,-500.0,0.0002803,2]
[312065697,1705594249814,-500.0,0.0002803,2]
[312065698,1705594249826,-500.0,0.0002803,2]
[312065699,1705594249835,-500.0,0.0002803,2]
[312065700,1705594249845,-500.0,0.0002803,2]
[312065701,1705594249854,-500.0,0.0002803,2]
[312065702,1705594249863,-500.0,0.0002803,2]
[312065703,1705594249872,-500.0,0.0002803,2]
[312065704,1705594249882,-500.0,0.0002803,2]
[312065705,1705594249892,-500.0,0.0002803,2]
[312065706,1705594249902,-500.0,0.0002803,2]
[312065707,1705594249912,-500.0,0.0002803,2]
[312065708,1705594249921,-500.0,0.0002803,2]
[312065709,1705594249931,-500.0,0.0002803,2]
[312065710,1705594249940,-200.0,0.0002803,2]
[312065711,1705594249949,-500.0,0.0002803,2]
[312065712,1705594249959,-500.0,0.0002803,2]
[312065713,1705594249973,-500.0,0.0002803,2]
[312065714,1705594249983,-500.0,0.0002803,2]
[312065715,1705594249994,-500.0,0.0002803,2]
[312065716,1705594250003,-500.0,0.0002803,2]
[312065717,1705594250013,-500.0,0.0002803,2]
[312065718,1705594250024,-500.0,0.0002803,2]
[312065719,1705594250033,-500.0,0.0002803,2]
[312065720,1705594250044,-500.0,0.0002803,2]
[312065721,1705594250054,-500.0,0.0002803,2]
[312065722,1705594250064,-500.0,0.0002803,2]
[312065723,1705594250073,-500.0,0.0002803,2]
[312065724,1705594250083,-500.0,0.0002803,2]
[312065725,1705594250094,-500.0,0.0002803,2]
[312065726,1705594250104,-500.0,0.0002803,2]
[312065727,1705594250114,-500.0,0.0002803,2]
[312065728,1705594250123,-500.0,0.0002803,2]
[312065729,1705594250134,-500.0,0.0002803,2]
[312065730,1705594250144,-500.0,0.0002803,2]
[312065731,1705594250154,-500.0,0.0002803,2]
[312065732,1705594250164,-10889.49,0.0002803,2]
[312065733,1705594250174,-500.0,0.00028042,2]
[312065734,1705594250185,-150.0,0.00028118,2]
[312065735,1705594250195,-500.0,0.00028128,7]
[312065736,1705594250206,-150.0,0.00028146,2]
[312065737,1705594250217,-10889.49,0.00028189,2]
[312065738,1705594250227,-500.0,0.000282,2]
[312065739,1705594250237,-150.0,0.000282,2]
[312065740,1705594250246,-588.0,0.00028285,2]
[312065741,1705594250257,-424.84,0.00028285,2]
[312065742,1705594250267,-200.0,0.000283,2]
[312065743,1705594250277,-167.0,0.00028307,2]
[312065744,1705594250288,-10889.49,0.00028347,2]
[312065745,1705594250299,-150.82535441,0.000284,2]
[312065746,1705594250309,-500.0,0.0002848,2]
[312065747,1705594250319,-150.0,0.00028493,2]
[312065748,1705594250329,-250.0,0.000285,2]
[312065749,1705594250340,-10889.49,0.00028505,2]
[312065750,1705594250350,-200.0,0.00028506,2]
[312065751,1705594250360,-205.0,0.00028542,12]
[312065752,1705594250370,-1000.0,0.00028546,2]
[312065753,1705594250381,-985.23,0.00028571,2]
[312065754,1705594250392,-10889.49,0.00028664,2]
[312065755,1705594250404,-150.0,0.000287,2]
[312065756,1705594250415,-411.0,0.00028751,2]